fUST/lending_fUST_20250226
["ID","MTS","AMOUNT","RATE_DAILY","PERIOD"]
[354578831,1740579895264,-5898.89,0.00054794,120]
[354578832,1740579895327,-1343.13,0.00054794,120]
[354578833,1740579895387,-500.0,0.00054794,120]
[354578834,1740579895455,-500.0,0.00054794,120]
[354578835,1740579895529,-2111.89,0.00055068,120]
[354578836,1740579895595,-2111.89,0.00055342,120]
[354578837,1740579895659,-1577.3,0.00055342,120]
[354578838,1740579895722,-12447.15,0.00055342,120]
[354578839,1740579895782,-500.0,0.00055342,120]
[354578840,1740579895847,-2425.42,0.00055342,120]
[354578841,1740579895912,-500.0,0.00055342,120]
[354578842,1740579895975,-5898.89,0.00055342,120]
[354578843,1740579896036,-1343.13,0.00055342,120]
[354578844,1740579896101,-500.0,0.00055342,120]
[354578845,1740579896170,-500.0,0.00055342,120]
[354578846,1740579896239,-1108.98,0.00055616,120]
[354578847,1740579896305,-3764.27,0.00055616,120]
[354578848,1740579896372,-761.05,0.00055616,120]
[354578849,1740579896443,-6016.67,0.00055616,120]
[354578850,1740579896511,-546.57,0.00055616,120]
[354578851,1740579896580,-2111.89,0.00055616,120]
[354578852,1740579896644,-2111.89,0.0005589,120]
[354578853,1740579896720,-1577.3,0.0005589,120]
[354578854,1740579896784,-12447.15,0.0005589,120]
[354578855,1740579896845,-500.0,0.0005589,120]
[354578856,1740579896904,-2425.42,0.0005589,120]
[354578857,1740579896964,-500.0,0.0005589,120]
[354578858,1740579897026,-5898.89,0.0005589,120]
[354578859,1740579897084,-1343.13,0.0005589,120]
[354578860,1740579897142,-500.0,0.0005589,120]
[354578861,1740579897199,-500.0,0.0005589,120]
[354578862,1740579897257,-2111.89,0.00056164,120]
[354578863,1740579897314,-1108.98,0.00056438,120]
[354578864,1740579897379,-3764.27,0.00056438,120]
[354578865,1740579897442,-761.05,0.00056438,120]
[354578866,1740579897510,-6016.67,0.00056438,120]
[354578867,1740579897573,-546.57,0.00056438,120]
[354578868,1740579897637,-2111.89,0.00056438,120]
[354578869,1740579897704,-1577.3,0.00056438,120]
[354578870,1740579897767,-12447.15,0.00056438,120]
[354578871,1740579897829,-500.0,0.00056438,120]
[354578872,1740579897888,-2425.42,0.00056438,120]
[354578873,1740579897950,-500.0,0.00056438,120]
[354578874,1740579898010,-5898.89,0.00056438,120]
[354578875,1740579898067,-1343.13,0.00056438,120]
[354578876,1740579898127,-2111.89,0.00056712,120]
[354578877,1740579898185,-2111.89,0.00056986,120]
[354578878,1740579898243,-1577.3,0.00056986,120]
[354578879,1740579898301,-12447.15,0.00056986,120]
[354578880,1740579898358,-500.0,0.00056986,120]
[354578881,1740579898412,-2425.42,0.00056986,120]
[354578882,1740579898471,-500.0,0.00056986,120]
[354578883,1740579898538,-5898.89,0.00056986,120]
[354578884,1740579898601,-1343.13,0.00056986,120]
[354578885,1740579898660,-646.2,0.0005726,120]
[354578886,1740579898722,-4549.97,0.0005726,120]
[354578887,1740579898781,-1159.31,0.0005726,120]
[354578888,1740579898837,-500.0,0.0005726,120]
[354578889,1740579898891,-575.70308805,0.0005726,120]
[354578890,1740579898951,-30388.62,0.0005726,120]
[354578891,1740579899012,-1227.8,0.0005726,120]
[354578892,1740579899079,-1108.98,0.0005726,120]
[354578893,1740579899143,-3764.27,0.0005726,120]
[354578894,1740579899206,-761.05,0.0005726,120]
[354578895,1740579899270,-6016.67,0.0005726,120]
[354578896,1740579899342,-546.57,0.0005726,120]
[354578897,1740579899413,-2111.89,0.0005726,120]
[354578898,1740579899482,-2111.89,0.00057534,120]
[354578899,1740579899553,-1577.3,0.00057534,120]
[354578900,1740579899619,-12447.15,0.00057534,120]
[354578901,1740579899688,-500.0,0.00057534,120]
[354578902,1740579899757,-2425.42,0.00057534,120]
[354578903,1740579899826,-500.0,0.00057534,120]
[354578904,1740579899891,-5898.89,0.00057534,120]
[354578905,1740579899954,-1343.13,0.00057534,120]
[354578906,1740579900019,-2111.89,0.00057808,120]
[354578907,1740579900087,-1108.98,0.00058082,120]
[354578908,1740579900158,-3764.27,0.00058082,120]
[354578909,1740579900224,-761.05,0.00058082,120]
[354578910,1740579900292,-6016.67,0.00058082,120]
[354578911,1740579900367,-546.57,0.00058082,120]
[354578912,1740579900449,-2111.89,0.00058082,120]
[354578913,1740579900528,-1577.3,0.00058082,120]
[354578914,1740579900595,-12447.15,0.00058082,120]
[354578915,1740579900665,-500.0,0.00058082,120]
[354578916,1740579900735,-2425.42,0.00058082,120]
[354578917,1740579900805,-500.0,0.00058082,120]
[354578918,1740579900871,-5898.89,0.00058082,120]
[354578919,1740579900938,-1343.13,0.00058082,120]
[354578920,1740579901002,-2111.89,0.00058356,120]
[354578921,1740579901067,-2111.89,0.0005863,120]
[354578922,1740579901133,-1577.3,0.0005863,120]
[354578923,1740579901352,-12447.15,0.0005863,120]
[354578924,1740579901427,-500.0,0.0005863,120]
[354578925,1740579901511,-2425.42,0.0005863,120]
[354578926,1740579901593,-5898.89,0.0005863,120]
[354578927,1740579901671,-1343.13,0.0005863,120]
[354578928,1740579901741,-22892.42,0.00058904,120]
[354578929,1740579901816,-1108.98,0.00058904,120]
[354578930,1740579901892,-3764.27,0.00058904,120]
[354578931,1740579901963,-761.05,0.00058904,120]
[354578932,1740579902033,-6016.67,0.00058904,120]
[354578933,1740579902104,-546.57,0.00058904,120]
[354578934,1740579902178,-2111.98361408,0.00058904,120]
[354578935,1740579902250,-3780.0,0.00059,30]
[354578936,1740579902325,-9204.54,0.00059,30]
[354578937,1740579902404,-1577.3,0.00059178,120]
[354578938,1740579902484,-12447.15,0.00059178,120]
[354578939,1740579902565,-500.0,0.00059178,120]
[354578940,1740579902649,-2425.42,0.00059178,120]
[354578941,1740579902728,-5898.89,0.00059178,120]
[354578942,1740579902802,-646.2,0.00059726,120]
[354578943,1740579902872,-4549.97,0.00059726,120]
[354578944,1740579902940,-1159.31,0.00059726,120]
[354578945,1740579903009,-500.0,0.00059726,120]
[354578946,1740579903091,-30388.62,0.00059726,120]
[354578947,1740579903166,-1227.8,0.00059726,120]
[354578948,1740579903246,-1108.98,0.00059726,120]
[354578949,1740579903335,-3764.27,0.00059726,120]
[354578950,1740579903427,-761.05,0.00059726,120]
[354578951,1740579903516,-6016.67,0.00059726,120]
[354578952,1740579903600,-546.57,0.00059726,120]
[354578953,1740579903685,-1577.3,0.00059726,120]
[354578954,1740579903782,-12447.15,0.00059726,120]
[354578955,1740579903863,-555.66434091,0.00059726,120]
[354578956,1740579903939,-2425.42,0.00059726,120]
[354578957,1740579904013,-1577.3,0.00060273,120]
[354578958,1740579904092,-12447.15,0.00060273,120]
[354578959,1740579904170,-2425.42,0.00060273,120]
[354578960,1740579904247,-1108.98,0.00060547,120]
[354578961,1740579904321,-3764.27,0.00060547,120]
[354578962,1740579904396,-761.05,0.00060547,120]
[354578963,1740579904478,-6016.67,0.00060547,120]
[354578964,1740579904576,-546.57,0.00060547,120]
[354578965,1740579904657,-1577.3,0.00060821,120]
[354578966,1740579904737,-12447.15,0.00060821,120]
[354578967,1740579904817,-2425.42,0.00060821,120]
[354578968,1740579904895,-1108.98,0.00061369,120]
[354578969,1740579904993,-3764.27,0.00061369,120]
[354578970,1740579905083,-761.05,0.00061369,120]
[354578971,1740579905167,-6016.67,0.00061369,120]
[354578972,1740579905246,-546.57,0.00061369,120]
[354578973,1740579905328,-1577.3,0.00061369,120]
[354578974,1740579905412,-12447.15,0.00061369,120]
[354578975,1740579905498,-2425.42,0.00061369,120]
[354578976,1740579905592,-1577.3,0.00061917,120]
[354578977,1740579905673,-12447.15,0.00061917,120]
[354578978,1740579905756,-2425.42,0.00061917,120]
[354578979,1740579905843,-277.92129658,0.00062191,120]
[354578980,1740579905922,-299.96628303,0.00062191,120]
[354578981,1740579906002,-500.0,0.00062191,120]
[354578982,1740579906082,-500.0,0.00062191,120]
[354578983,1740579906157,-500.0,0.00062191,120]
[354578984,1740579906232,-500.0,0.00062191,120]
[354578985,1740579906312,-500.0,0.00062191,120]
[354578986,1740579906394,-583.17267445,0.00062191,120]
[354578987,1740579906472,-500.0,0.00062191,120]
[354578988,1740579906550,-500.0,0.00062191,120]
[354578989,1740579906629,-500.0,0.00062191,120]
[354578990,1740579906708,-150.07101852,0.00062191,120]
[354578991,1740579906788,-500.0,0.00062191,120]
[354578992,1740579906870,-859.54,0.00062191,120]
[354578993,1740579906954,-729.35,0.00062191,30]
[354578994,1740579907028,-500.0,0.00062191,120]
[354578995,1740579907099,-898.87,0.00062191,120]
[354578996,1740579907176,-500.0,0.00062191,120]
[354578997,1740579907259,-500.0,0.00062191,120]
[354578998,1740579907343,-500.0,0.00062191,120]
[354578999,1740579907421,-500.0,0.00062191,120]
[354579000,1740579907504,-500.0,0.00062191,120]
[354579001,1740579907594,-500.0,0.00062191,120]
[354579002,1740579907675,-500.0,0.00062191,120]
[354579003,1740579907749,-562.32,0.00062191,120]
[354579004,1740579907824,-500.0,0.00062191,120]
[354579005,1740579907906,-500.0,0.00062191,120]
[354579006,1740579907988,-500.0,0.00062191,120]
[354579007,1740579908094,-500.0,0.00062191,120]
[354579008,1740579908169,-500.0,0.00062191,120]
[354579009,1740579908245,-500.0,0.00062191,120]
[354579010,1740579908318,-500.0,0.00062191,120]
[354579011,1740579908399,-500.0,0.00062191,120]
[354579012,1740579908472,-1724.74,0.00062191,120]
[354579013,1740579908555,-500.0,0.00062191,120]
[354579014,1740579908630,-500.0,0.00062191,120]
[354579015,1740579908705,-500.0,0.00062191,120]
[354579017,1740579908785,-500.89859855,0.00062191,120]
[354579018,1740579909032,-500.0,0.00062191,120]
[354579019,1740579909109,-500.0,0.00062191,120]
[354579020,1740579909185,-500.0,0.00062191,120]
[354579021,1740579909257,-546.59272125,0.00062191,120]
[354579022,1740579909335,-500.0,0.00062191,120]
[354579023,1740579909411,-500.0,0.00062191,120]
[354579024,1740579909496,-971.77,0.00062191,120]
[354579025,1740579909590,-500.0,0.00062191,120]
[354579026,1740579909675,-500.0,0.00062191,120]
[354579027,1740579909759,-500.0,0.00062191,120]
[354579028,1740579909844,-500.0,0.00062191,120]
[354579029,1740579909928,-500.0,0.00062191,120]
[354579030,1740579910008,-500.0,0.00062191,120]
[354579031,1740579910086,-500.0,0.00062191,120]
[354579032,1740579910162,-2245.58,0.00062191,120]
[354579033,1740579910237,-500.0,0.00062191,120]
[354579034,1740579910315,-500.0,0.00062191,120]
[354579035,1740579910392,-500.0,0.00062191,120]
[354579036,1740579910469,-500.0,0.00062191,120]
[354579037,1740579910541,-500.0,0.00062191,120]
[354579038,1740579910611,-500.0,0.00062191,120]
[354579039,1740579910687,-500.0,0.00062191,120]
[354579040,1740579910761,-500.0,0.00062191,120]
[354579041,1740579910845,-500.0,0.00062191,120]
[354579042,1740579910921,-1665.19,0.00062191,120]
[354579043,1740579910997,-500.0,0.00062191,120]
[354579044,1740579911070,-662.27,0.00062191,120]
[354579045,1740579911149,-500.0,0.00062191,120]
[354579046,1740579911224,-500.0,0.00062191,120]
[354579047,1740579911298,-500.0,0.00062191,120]
[354579048,1740579911367,-500.0,0.00062191,120]
[354579049,1740579911448,-500.0,0.00062191,120]
[354579050,1740579911523,-501.68645118,0.00062191,120]
[354579051,1740579911600,-1014.1,0.00062191,120]
[354579052,1740579911700,-2063.02,0.00062191,120]
[354579053,1740579911815,-500.0,0.00062191,90]
[354579054,1740579911941,-1049.82,0.00062191,120]
[354579055,1740579912014,-500.0,0.00062191,120]
[354579056,1740579912088,-500.0,0.00062191,120]
[354579057,1740579912165,-500.0,0.00062191,120]
[354579058,1740579912243,-501.23,0.00062191,120]
[354579059,1740579912326,-500.0,0.00062191,120]
[354579060,1740579912406,-500.0,0.00062191,120]
[354579061,1740579912482,-974.57,0.00062191,120]
[354579062,1740579912562,-500.0,0.00062191,120]
[354579063,1740579912636,-1180.21,0.00062191,120]
[354579064,1740579912711,-500.0,0.00062191,120]
[354579065,1740579912786,-511.41776573,0.00062191,120]
[354579066,1740579912864,-500.0,0.00062191,120]
[354579067,1740579912952,-1139.59,0.00062191,120]
[354579068,1740579913039,-559.37376129,0.00062191,120]
[354579069,1740579913117,-500.0,0.00062191,120]
[354579070,1740579913204,-500.0,0.00062191,120]
[354579071,1740579913283,-500.0,0.00062191,120]
[354579072,1740579913360,-500.0,0.00062191,120]
[354579073,1740579913441,-500.0,0.00062191,120]
[354579074,1740579913525,-500.0,0.00062191,120]
[354579075,1740579913602,-2403.15,0.00062191,120]
[354579076,1740579913682,-500.0,0.00062191,120]
[354579077,1740579913761,-500.0,0.00062191,120]
[354579078,1740579913842,-500.0,0.00062191,120]
[354579079,1740579913918,-787.39,0.00062191,120]
[354579080,1740579913995,-500.0,0.00062191,120]
[354579081,1740579914070,-500.0,0.00062191,120]
[354579082,1740579914149,-500.0,0.00062191,120]
[354579083,1740579914226,-515.1832253,0.00062191,120]
[354579084,1740579914305,-500.0,0.00062191,120]
[354579085,1740579914383,-553.37,0.00062191,120]
[354579086,1740579914461,-500.0,0.00062191,120]
[354579087,1740579914539,-331.09284077,0.00062191,120]
[354579088,1740579914616,-2244.99,0.00062191,120]
[354579089,1740579914692,-500.0,0.00062191,120]
[354579090,1740579914775,-500.0,0.00062191,120]
[354579091,1740579914851,-735.89,0.00062191,120]
[354579092,1740579914930,-500.0,0.00062191,120]
[354579093,1740579915007,-1987.92,0.00062191,120]
[354579094,1740579915088,-500.0,0.00062191,120]
[354579095,1740579915167,-500.0,0.00062191,120]
[354579096,1740579915249,-500.0,0.00062191,120]
[354579097,1740579915329,-500.0,0.00062191,120]
[354579098,1740579915406,-3230.99,0.00062191,120]
[354579099,1740579915478,-500.0,0.00062191,120]
[354579100,1740579915557,-500.0,0.00062191,120]
[354579101,1740579915634,-535.2803163,0.00062191,120]
[354579102,1740579915706,-1064.14,0.00062191,120]
[354579103,1740579915786,-1022.62,0.00062191,120]
[354579104,1740579915862,-500.0,0.00062191,120]
[354579105,1740579915937,-845.76,0.00062191,120]
[354579106,1740579916008,-500.0,0.00062191,120]
[354579107,1740579916083,-500.0,0.00062191,120]
[354579108,1740579916159,-500.0,0.00062191,120]
[354579109,1740579916233,-500.0,0.00062191,120]
[354579110,1740579916305,-500.0,0.00062191,120]
[354579111,1740579916386,-1009.17,0.00062191,120]
[354579112,1740579916606,-1166.29,0.00062191,120]
[354579113,1740579916687,-174.15017517,0.00062191,120]
[354579114,1740579916765,-1012.55,0.00062191,120]
[354579115,1740579916848,-1100.74,0.00062191,120]
[354579116,1740579916925,-500.0,0.00062191,120]
[354579117,1740579917000,-1264.2,0.00062191,120]
[354579118,1740579917082,-1431.5,0.00062191,120]
[354579119,1740579917157,-500.0,0.00062191,120]
[354579120,1740579917230,-500.0,0.00062191,120]
[354579121,1740579917300,-500.0,0.00062191,120]
[354579122,1740579917369,-500.0,0.00062191,120]
[354579123,1740579917441,-500.0,0.00062191,120]
[354579124,1740579917519,-500.0,0.00062191,120]
[354579125,1740579917595,-500.0,0.00062191,120]
[354579126,1740579917662,-500.0,0.00062191,30]
[354579127,1740579917735,-499.76404264,0.00062191,120]
[354579128,1740579917806,-655.76,0.00062191,120]
[354579129,1740579917877,-738.32,0.00062191,120]
[354579130,1740579917946,-2088.55,0.00062191,120]
[354579131,1740579918013,-500.0,0.00062191,120]
[354579132,1740579918081,-500.0,0.00062191,30]
[354579133,1740579918158,-504.76165128,0.00062191,120]
[354579134,1740579918233,-315.99257805,0.00062191,120]
[354579135,1740579918309,-500.0,0.00062191,120]
[354579136,1740579918383,-1000.0,0.00062191,120]
[354579137,1740579918464,-500.0,0.00062191,120]
[354579138,1740579918542,-500.0,0.00062191,120]
[354579139,1740579918625,-500.0,0.00062191,120]
[354579140,1740579918699,-817.85,0.00062191,120]
[354579141,1740579918777,-500.0,0.00062191,120]
[354579142,1740579918855,-500.0,0.00062191,120]
[354579143,1740579918927,-580.26,0.00062191,120]
[354579144,1740579918995,-500.0,0.00062191,120]
[354579145,1740579919066,-500.0,0.00062191,120]
[354579146,1740579919135,-1027.36,0.00062191,120]
[354579147,1740579919205,-500.0,0.00062191,120]
[354579148,1740579919276,-652.16,0.00062191,120]
[354579149,1740579919352,-500.0,0.00062191,120]
[354579150,1740579919428,-572.98,0.00062191,120]
[354579151,1740579919508,-500.0,0.00062191,120]
[354579152,1740579919599,-2344.01,0.00062191,120]
[354579153,1740579919677,-1000.0,0.00062191,120]
[354579154,1740579919752,-500.0,0.00062191,120]
[354579155,1740579919830,-500.0,0.00062191,120]
[354579156,1740579919915,-500.0,0.00062191,120]
[354579157,1740579919985,-502.51,0.00062191,120]
[354579158,1740579920055,-500.0,0.00062191,120]
[354579159,1740579920127,-1386.87,0.00062191,120]
[354579160,1740579920207,-1095.8,0.00062191,120]
[354579161,1740579920279,-500.0,0.00062191,120]
[354579162,1740579920355,-500.0,0.00062191,120]
[354579163,1740579920430,-595.63,0.00062191,120]
[354579164,1740579920518,-500.0,0.00062191,120]
[354579165,1740579920602,-1083.08,0.00062191,120]
[354579166,1740579920683,-690.75,0.00062191,120]
[354579167,1740579920763,-500.0,0.00062191,120]
[354579168,1740579920844,-782.75,0.00062191,120]
[354579169,1740579920916,-500.0,0.00062191,120]
[354579170,1740579920995,-500.0,0.00062191,120]
[354579171,1740579921071,-601.08,0.00062191,120]
[354579172,1740579921141,-500.0,0.00062191,120]
[354579173,1740579921213,-548.04628182,0.00062191,120]
[354579174,1740579921285,-500.0,0.00062191,120]
[354579175,1740579921362,-917.27,0.00062191,120]
[354579176,1740579921438,-500.0,0.00062191,120]
[354579177,1740579921519,-960.5,0.00062191,120]
[354579178,1740579921599,-151.0,0.00062191,120]
[354579179,1740579921679,-488.25935865,0.00062191,120]
[354579180,1740579921756,-1126.74,0.00062191,120]
[354579181,1740579921834,-500.0,0.00062191,120]
[354579182,1740579921911,-1381.74,0.00062191,120]
[354579183,1740579921982,-193.27442543,0.00062191,120]
[354579184,1740579922052,-500.0,0.00062191,120]
[354579185,1740579922129,-500.0,0.00062191,120]
[354579186,1740579922204,-6540.99,0.00062191,120]
[354579187,1740579922280,-8202.76,0.00062191,120]
[354579188,1740579922358,-500.0,0.00062191,120]
[354579189,1740579922431,-500.0,0.00062191,120]
[354579190,1740579922512,-1151.19,0.00062191,120]
[354579191,1740579922594,-1719.3,0.00062191,120]
[354579192,1740579922668,-400.28967085,0.00062191,120]
[354579193,1740579922742,-500.0,0.00062191,120]
[354579194,1740579922813,-500.0,0.00062191,120]
[354579195,1740579922884,-500.0,0.00062191,120]
[354579196,1740579922951,-500.0,0.00062191,120]
[354579197,1740579923021,-700.31,0.00062191,120]
[354579198,1740579923097,-500.0,0.00062191,120]
[354579199,1740579923174,-2452.49,0.00062191,120]
[354579200,1740579923248,-1463.35,0.00062191,120]
[354579201,1740579923321,-2694.76,0.00062191,120]
[354579202,1740579923395,-1717.62,0.00062191,120]
[354579203,1740579923466,-521.34,0.00062191,120]
[354579204,1740579923537,-500.0,0.00062191,120]
[354579205,1740579923612,-500.0,0.00062191,120]
[354579206,1740579923690,-500.0,0.00062191,120]
[354579207,1740579923906,-5390.23,0.00062191,120]
[354579208,1740579923976,-2172.14,0.00062191,120]
[354579209,1740579924045,-500.0,0.00062191,120]
[354579210,1740579924117,-500.0,0.00062191,120]
[354579211,1740579924195,-500.0,0.00062191,120]
[354579212,1740579924268,-500.0,0.00062191,120]
[354579213,1740579924345,-160.96240777,0.00062191,120]
[354579214,1740579924419,-500.0,0.00062191,120]
[354579215,1740579924498,-556.31,0.00062191,120]
[354579216,1740579924573,-625.49,0.00062191,120]
[354579217,1740579924649,-500.0,0.00062191,120]
[354579218,1740579924721,-500.0,0.00062191,120]
[354579219,1740579924795,-3705.75,0.00062191,120]
[354579220,1740579924870,-500.0,0.00062191,120]
[354579221,1740579924947,-709.92,0.00062191,120]
[354579222,1740579925026,-917.12,0.00062191,120]
[354579223,1740579925094,-986.75,0.00062191,120]
[354579224,1740579925168,-500.0,0.00062191,120]
[354579225,1740579925239,-500.0,0.00062191,120]
[354579226,1740579925306,-500.0,0.00062191,120]
[354579227,1740579925376,-1563.56,0.00062191,120]
[354579228,1740579925457,-3765.23,0.00062191,120]
[354579229,1740579925531,-500.0,0.00062191,120]
[354579230,1740579925606,-14560.98,0.00062191,120]
[354579231,1740579925679,-500.0,0.00062191,120]
[354579232,1740579925753,-500.0,0.00062191,120]
[354579233,1740579925830,-501.35000233,0.00062191,120]
[354579234,1740579925905,-836.85,0.00062191,120]
[354579235,1740579925978,-695.04,0.00062191,120]
[354579236,1740579926052,-4017.93,0.00062191,120]
[354579237,1740579926126,-500.0,0.00062191,120]
[354579238,1740579926205,-9942.46,0.00062191,120]
[354579239,1740579926279,-21936.18,0.00062191,120]
[354579240,1740579926356,-11727.25,0.00062191,120]
[354579241,1740579926430,-1048.45,0.00062191,30]
[354579242,1740579926509,-2392.51,0.00062191,120]
[354579243,1740579926584,-500.0,0.00062191,120]
[354579244,1740579926660,-1281.85,0.00062191,120]
[354579245,1740579926740,-500.0,0.00062191,30]
[354579246,1740579926816,-500.0,0.00062191,120]
[354579247,1740579926896,-2569.85,0.00062191,120]
[354579248,1740579926969,-4415.59,0.00062191,120]
[354579249,1740579927047,-286.44052615,0.00062191,120]
[354579250,1740579927123,-1840.13,0.00062191,120]
[354579251,1740579927198,-530.0725977,0.00062191,120]
[354579252,1740579927274,-500.0,0.00062191,120]
[354579253,1740579927356,-500.0,0.00062191,120]
[354579254,1740579927440,-639.73,0.00062191,120]
[354579255,1740579927522,-500.0,0.00062191,120]
[354579256,1740579927599,-500.0,0.00062191,120]
[354579257,1740579927671,-3820.04,0.00062191,120]
[354579258,1740579927744,-2296.51,0.00062191,120]
[354579259,1740579927819,-500.0,0.00062191,120]
[354579260,1740579927892,-500.0,0.00062191,120]
[354579261,1740579927968,-297.93519586,0.00062191,120]
[354579262,1740579928046,-3158.28,0.00062191,120]
[354579263,1740579928120,-500.0,0.00062191,120]
[354579264,1740579928200,-986.87,0.00062191,120]
[354579265,1740579928280,-500.0,0.00062191,120]
[354579266,1740579928357,-1283.45,0.00062191,120]
[354579267,1740579928435,-1562.71,0.00062191,120]
[354579268,1740579928519,-500.0,0.00062191,120]
[354579269,1740579928591,-500.0,0.00062191,120]
[354579270,1740579928667,-1742.25,0.00062191,120]
[354579271,1740579928742,-1458.25,0.00062191,120]
[354579272,1740579928818,-566.02,0.00062191,120]
[354579273,1740579928891,-1798.68,0.00062191,120]
[354579274,1740579928969,-671.49,0.00062191,120]
[354579275,1740579929050,-3547.41,0.00062191,120]
[354579276,1740579929127,-2841.24,0.00062191,120]
[354579277,1740579929204,-2630.42,0.00062191,120]
[354579278,1740579929282,-1998.76,0.00062191,120]
[354579279,1740579929359,-3000.0,0.00062191,120]
[354579280,1740579929442,-500.0,0.00062191,120]
[354579281,1740579929523,-500.0,0.00062191,120]
[354579282,1740579929604,-500.0,0.00062191,120]
[354579283,1740579929684,-500.0,0.00062191,120]
[354579284,1740579929763,-4196.21,0.00062191,120]
[354579285,1740579929846,-500.0,0.00062191,120]
[354579286,1740579929928,-2816.05,0.00062191,120]
[354579287,1740579930004,-250.0,0.00062191,120]
[354579288,1740579930083,-527.41,0.00062191,120]
[354579289,1740579930153,-500.0,0.00062191,120]
[354579290,1740579930232,-544.05,0.00062191,120]
[354579291,1740579930309,-734.83,0.00062191,120]
[354579292,1740579930390,-646.2,0.00062191,120]
[354579293,1740579930472,-4549.97,0.00062191,120]
[354579294,1740579930560,-1159.31,0.00062191,120]
[354579295,1740579930649,-500.0,0.00062191,120]
[354579296,1740579930736,-30388.62,0.00062191,120]
[354579297,1740579930818,-1227.8,0.00062191,120]
[354579298,1740579930903,-1108.98,0.00062191,120]
[354579299,1740579930989,-3764.27,0.00062191,120]
[354579300,1740579931081,-761.05,0.00062191,120]
[354579301,1740579931173,-6016.67,0.00062191,120]
[354579302,1740579931431,-546.57,0.00062191,120]
[354579303,1740579931524,-1577.3,0.00062465,120]
[354579304,1740579931603,-12447.15,0.00062465,120]
[354579305,1740579931680,-2425.42,0.00062465,120]
[354579306,1740579931757,-10000.0,0.000625,100]
[354579307,1740579931832,-1828.78913679,0.00062898,120]
[354579308,1740579931909,-1828.78913679,0.00062898,120]
[354579309,1740579931983,-1828.78913679,0.00062898,120]
[354579310,1740579932055,-1828.78913679,0.00062898,120]
[354579311,1740579932128,-1828.78913679,0.00062898,120]
[354579312,1740579932206,-151.0,0.00062932,120]
[354579313,1740579932283,-18663.0,0.00063,120]
[354579314,1740579932356,-3090.0,0.00063,120]
[354579315,1740579932432,-20000.0,0.00063,120]
[354579316,1740579932516,-22892.42,0.00063013,120]
[354579317,1740579932592,-1108.98,0.00063013,120]
[354579318,1740579932667,-3764.27,0.00063013,120]
[354579319,1740579932743,-761.05,0.00063013,120]
[354579320,1740579932821,-6016.67,0.00063013,120]
[354579321,1740579932899,-546.57,0.00063013,120]
[354579322,1740579932975,-1577.3,0.00063013,120]
[354579323,1740579933052,-12447.15,0.00063013,120]
[354579324,1740579933122,-2425.42,0.00063013,120]
[354579325,1740579933200,-3780.0,0.000631,30]
[354579326,1740579933282,-9204.54,0.000631,30]
[354579327,1740579933358,-250.0,0.00063287,120]
[354579328,1740579933440,-444.09,0.00063287,120]
[354579329,1740579933524,-250.0,0.00063287,120]
[354579330,1740579933605,-37265.0,0.000633,120]
[354579331,1740579933686,-8819.55,0.000633,30]